fUSD/lending_fUSD_20250201
["ID","MTS","AMOUNT","RATE_DAILY","PERIOD"]
[351166801,1738384252223,-500.0,0.00018876,2]
[351166802,1738384252233,-151.0,0.00018876,2]
[351166803,1738384252242,-500.0,0.00018876,2]
[351166804,1738384252252,-1000.0,0.00018876,2]
[351166805,1738384252263,-500.0,0.00018876,2]
[351166806,1738384252274,-500.0,0.00018876,2]
[351166807,1738384252288,-500.0,0.00018876,2]
[351166808,1738384252299,-500.0,0.00018876,2]
[351166809,1738384252309,-500.0,0.00018876,2]
[351166810,1738384252319,-1779.37,0.00018876,2]
[351166811,1738384252329,-645.64,0.00018876,2]
[351166812,1738384252339,-3077.92,0.00018876,2]
[351166813,1738384252351,-2179.18,0.00018876,2]
[351166814,1738384252361,-500.0,0.00018876,2]
[351166815,1738384252371,-502.61962237,0.00018876,2]
[351166816,1738384252381,-1050.7,0.00018876,2]
[351166817,1738384252392,-975.34,0.00018876,2]
[351166818,1738384252402,-501.95896601,0.00018877,2]
[351166819,1738384252411,-306.69427804,0.00018877,2]
[351166820,1738384252421,-500.0,0.00018877,2]
[351166821,1738384252430,-503.21497331,0.00018877,2]
[351166822,1738384252439,-500.0,0.00018877,2]
[351166823,1738384252448,-500.0,0.00018877,2]
[351166824,1738384252458,-500.0,0.00018877,2]
[351166825,1738384252467,-500.0,0.00018877,2]
[351166826,1738384252478,-380.14518697,0.00018877,2]
[351166827,1738384252488,-532.94676085,0.00018877,2]
[351166828,1738384252498,-500.0,0.00018877,2]
[351166829,1738384252507,-339.99434269,0.00018877,2]
[351166830,1738384252517,-500.0,0.00018877,2]
[351166831,1738384252527,-500.0,0.00018877,2]
[351166832,1738384252536,-500.0,0.00018877,2]
[351166833,1738384252545,-504.8736085,0.00018877,2]
[351166834,1738384252559,-500.0,0.00018877,2]
[351166835,1738384252571,-500.0,0.00018877,2]
[351166836,1738384252580,-502.01635977,0.00018877,2]
[351166837,1738384252589,-501.42534726,0.00018877,2]
[351166838,1738384252599,-500.0,0.00018877,2]
[351166839,1738384252609,-502.15182549,0.00018877,2]
[351166840,1738384252618,-501.81736788,0.00018877,2]
[351166841,1738384252627,-500.0,0.00018877,2]
[351166842,1738384252637,-540.93028187,0.00018877,2]
[351166843,1738384252647,-500.0,0.00018877,2]
[351166844,1738384252656,-500.0,0.00018877,2]
[351166845,1738384252666,-457.83422378,0.00018877,2]
[351166846,1738384252675,-430.59582687,0.00018877,2]
[351166847,1738384252685,-501.2004422,0.00018877,2]
[351166848,1738384252694,-500.0,0.00018877,2]
[351166849,1738384252703,-215.98029056,0.00018877,2]
[351166850,1738384252712,-552.84314401,0.00018877,2]
[351166851,1738384252722,-500.0,0.00018877,2]
[351166852,1738384252731,-500.0,0.00018877,2]
[351166853,1738384252741,-500.0,0.00018877,2]
[351166854,1738384252751,-500.0,0.00018877,2]
[351166855,1738384252762,-267.22974543,0.00018877,2]
[351166856,1738384252771,-507.78420761,0.00018877,2]
[351166857,1738384252781,-421.68286787,0.00018877,2]
[351166858,1738384252790,-502.14039676,0.00018877,2]
[351166859,1738384252799,-500.0,0.00018877,2]
[351166860,1738384252809,-358.01900036,0.00018877,2]
[351166861,1738384252818,-500.0,0.00018877,2]
[351166862,1738384252827,-500.0,0.00018877,2]
[351166863,1738384252837,-360.65382696,0.00018877,2]
[351166864,1738384252846,-500.0,0.00018877,2]
[351166865,1738384252855,-500.0,0.00018877,2]
[351166866,1738384252864,-504.22220234,0.00018877,2]
[351166867,1738384252873,-151.0,0.00018877,2]
[351166868,1738384252882,-504.78006648,0.00018877,2]
[351166869,1738384252891,-500.0,0.00018877,2]
[351166870,1738384252900,-591.0115362,0.00018877,2]
[351166871,1738384252909,-503.11391738,0.00018877,2]
[351166872,1738384252918,-500.0,0.00018877,2]
[351166873,1738384252927,-500.0,0.00018877,2]
[351166874,1738384252937,-390.05909018,0.00018877,2]
[351166875,1738384252948,-500.0,0.00018877,2]
[351166876,1738384252957,-500.0,0.00018877,2]
[351166877,1738384252968,-228.64378936,0.00018877,2]
[351166878,1738384252978,-500.0,0.00018877,2]
[351166879,1738384252987,-151.0,0.00018877,2]
[351166880,1738384252998,-504.39374714,0.00018877,2]
[351166881,1738384253009,-509.46788238,0.00018877,2]
[351166882,1738384253019,-151.0,0.00018877,2]
[351166883,1738384253028,-500.0,0.00018877,2]
[351166884,1738384253039,-500.0,0.00018877,2]
[351166885,1738384253048,-500.0,0.00018877,2]
[351166886,1738384253059,-500.0,0.00018877,2]
[351166887,1738384253068,-151.0,0.00018877,2]
[351166888,1738384253078,-500.80335089,0.00018877,2]
[351166889,1738384253087,-500.0,0.00018877,2]
[351166890,1738384253098,-501.51835667,0.00018877,2]
[351166891,1738384253107,-500.0,0.00018877,2]
[351166892,1738384253117,-502.32519458,0.00018877,2]
[351166893,1738384253126,-527.1568418,0.00018877,2]
[351166894,1738384253135,-505.14792946,0.00018877,2]
[351166895,1738384253143,-151.0,0.00018877,2]
[351166896,1738384253152,-500.0,0.00018877,2]
[351166897,1738384253161,-505.84700318,0.00018877,2]
[351166898,1738384253170,-500.0,0.00018877,2]
[351166899,1738384253179,-500.0,0.00018877,2]
[351166900,1738384253188,-500.0,0.00018877,2]
[351166901,1738384253198,-151.0,0.00018877,2]
[351166902,1738384253207,-500.2018567,0.00018877,2]
[351166903,1738384253216,-500.0,0.00018877,2]
[351166904,1738384253226,-502.51570425,0.00018877,2]
[351166905,1738384253236,-402.34881465,0.00018877,2]
[351166906,1738384253246,-500.0,0.00018877,2]
[351166907,1738384253255,-504.06117646,0.00018877,2]
[351166908,1738384253266,-500.0,0.00018877,2]
[351166909,1738384253277,-500.0,0.00018877,7]
[351166910,1738384253287,-500.0,0.00018877,2]
[351166911,1738384253297,-500.0,0.00018877,2]
[351166912,1738384253307,-511.98077439,0.00018877,2]
[351166913,1738384253317,-506.88515636,0.00018877,2]
[351166914,1738384253327,-467.88239477,0.00018877,2]
[351166915,1738384253336,-500.0,0.00018877,2]
[351166916,1738384253345,-500.0,0.00018877,2]
[351166917,1738384253355,-502.54587135,0.00018877,2]
[351166918,1738384253367,-500.0,0.00018877,2]
[351166919,1738384253376,-500.0,0.00018877,2]
[351166920,1738384253385,-500.0,0.00018877,2]
[351166921,1738384253395,-500.0,0.00018877,2]
[351166922,1738384253404,-514.93658034,0.00018877,2]
[351166923,1738384253414,-588.90157371,0.00018877,2]
[351166924,1738384253423,-1015.11,0.00018877,2]
[351166925,1738384253433,-502.29316537,0.00018877,2]
[351166926,1738384253443,-151.0,0.00018877,2]
[351166927,1738384253452,-151.0,0.00018877,2]
[351166928,1738384253463,-500.0,0.00018877,2]
[351166929,1738384253472,-500.0,0.00018877,2]
[351166930,1738384253482,-500.0,0.00018877,2]
[351166931,1738384253492,-500.0,0.00018877,2]
[351166932,1738384253500,-500.0,0.00018877,2]
[351166933,1738384253509,-500.0,0.00018877,2]
[351166934,1738384253518,-152.18741,0.00018877,2]
[351166935,1738384253528,-504.15922288,0.00018877,2]
[351166936,1738384253538,-500.0,0.00018877,2]
[351166937,1738384253548,-529.52920294,0.00018877,2]
[351166938,1738384253558,-501.12614887,0.00018877,2]
[351166939,1738384253568,-318.584073,0.00018877,2]
[351166940,1738384253579,-500.0,0.00018877,2]
[351166941,1738384253589,-500.0,0.00018877,2]
[351166942,1738384253598,-500.0,0.00018877,2]
[351166943,1738384253607,-502.72930687,0.00018877,2]
[351166944,1738384253616,-500.0,0.00018877,2]
[351166945,1738384253625,-500.0,0.00018877,2]
[351166946,1738384253635,-508.89251049,0.00018877,2]
[351166947,1738384253644,-518.6156716,0.00018877,2]
[351166948,1738384253750,-500.0,0.00018877,2]
[351166949,1738384253769,-500.0,0.00018877,2]
[351166950,1738384253778,-500.0,0.00018877,2]
[351166951,1738384253788,-500.0,0.00018877,2]
[351166952,1738384253798,-505.08993331,0.00018877,2]
[351166953,1738384253807,-500.0,0.00018877,2]
[351166954,1738384253817,-500.0,0.00018877,2]
[351166955,1738384253826,-179.8285181,0.00018877,2]
[351166956,1738384253835,-500.0,0.00018877,2]
[351166957,1738384253844,-151.410887,0.00018877,2]
[351166958,1738384253853,-500.0,0.00018877,2]
[351166959,1738384253862,-504.40842978,0.00018877,2]
[351166960,1738384253872,-500.0,0.00018877,2]
[351166961,1738384253881,-508.28046743,0.00018877,2]
[351166962,1738384253890,-500.0,0.00018877,2]
[351166963,1738384253899,-509.65871931,0.00018877,2]
[351166964,1738384253908,-500.0,0.00018877,2]
[351166965,1738384253917,-500.0,0.00018877,2]
[351166966,1738384253927,-500.0,0.00018877,2]
[351166967,1738384253936,-636.14770815,0.00018877,2]
[351166968,1738384253944,-500.0,0.00018877,2]
[351166969,1738384253954,-500.0,0.00018877,2]
[351166970,1738384253963,-500.0,0.00018877,2]
[351166971,1738384253972,-624.1063805,0.00018877,2]
[351166972,1738384253981,-151.0,0.00018877,2]
[351166973,1738384253991,-517.84693886,0.00018877,2]
[351166974,1738384253999,-520.81196029,0.00018877,2]
[351166975,1738384254008,-511.65581251,0.00018877,2]
[351166976,1738384254017,-500.0,0.00018877,2]
[351166977,1738384254027,-151.0,0.00018877,2]
[351166978,1738384254036,-500.0,0.00018877,2]
[351166979,1738384254045,-507.97834489,0.00018877,2]
[351166980,1738384254054,-500.0,0.00018877,2]
[351166981,1738384254063,-649.53848105,0.00018877,2]
[351166982,1738384254073,-500.0,0.00018877,2]
[351166983,1738384254082,-500.0,0.00018877,2]
[351166984,1738384254092,-500.0,0.00018877,2]
[351166985,1738384254100,-516.48753919,0.00018877,2]
[351166986,1738384254109,-500.0,0.00018877,2]
[351166987,1738384254119,-405.55,0.00018877,2]
[351166988,1738384254129,-626.25,0.00018877,2]
[351166989,1738384254139,-151.0,0.00018877,2]
[351166990,1738384254148,-500.0,0.00018877,2]
[351166991,1738384254158,-514.61205701,0.00018877,2]
[351166992,1738384254168,-500.0,0.00018877,2]
[351166993,1738384254178,-500.0,0.00018877,2]
[351166994,1738384254187,-506.87992338,0.00018877,2]
[351166995,1738384254196,-500.0,0.00018877,2]
[351166996,1738384254206,-261.202837,0.00018877,2]
[351166997,1738384254216,-500.0,0.00018877,2]
[351166998,1738384254225,-500.0,0.00018877,2]
[351166999,1738384254234,-500.0,0.00018877,2]
[351167000,1738384254243,-297.1395,0.00018877,2]
[351167001,1738384254252,-509.18775008,0.00018877,2]
[351167002,1738384254261,-500.0,0.00018877,2]
[351167003,1738384254270,-500.0,0.00018877,2]
[351167004,1738384254282,-500.0,0.00018877,2]
[351167005,1738384254291,-500.0,0.00018877,2]
[351167006,1738384254300,-359.469731,0.00018877,2]
[351167007,1738384254309,-500.0,0.00018877,2]
[351167008,1738384254318,-500.0,0.00018877,2]
[351167009,1738384254327,-572.632682,0.00018877,2]
[351167010,1738384254336,-500.0,0.00018877,2]
[351167011,1738384254346,-359.469731,0.00018877,2]
[351167012,1738384254356,-860.26,0.00018877,2]
[351167013,1738384254366,-500.0,0.00018877,2]
[351167014,1738384254375,-572.632682,0.00018877,2]
[351167015,1738384254384,-500.0,0.00018877,2]
[351167016,1738384254393,-505.85444553,0.00018877,2]
[351167017,1738384254402,-500.0,0.00018877,2]
[351167018,1738384254411,-500.0,0.00018877,2]
[351167019,1738384254420,-500.0,0.00018877,2]
[351167020,1738384254429,-151.0,0.00018877,2]
[351167021,1738384254439,-152.801248,0.00018877,2]
[351167022,1738384254448,-500.0,0.00018877,2]
[351167023,1738384254457,-500.0,0.00018877,2]
[351167024,1738384254466,-500.0,0.00018877,2]
[351167025,1738384254475,-500.0,0.00018877,2]
[351167026,1738384254484,-177.72367749,0.00018877,2]
[351167027,1738384254493,-510.17219573,0.00018877,2]
[351167028,1738384254503,-500.0,0.00018877,2]
[351167029,1738384254512,-508.31752236,0.00018877,2]
[351167030,1738384254522,-608.0291541,0.00018877,2]
[351167031,1738384254531,-500.0,0.00018877,2]
[351167032,1738384254540,-500.0,0.00018877,2]
[351167033,1738384254549,-151.0,0.00018877,2]
[351167034,1738384254558,-500.0,0.00018877,2]
[351167035,1738384254567,-215.61937361,0.00018877,2]
[351167036,1738384254575,-500.0,0.00018877,2]
[351167037,1738384254585,-500.0,0.00018877,2]
[351167038,1738384254594,-500.0,0.00018877,2]
[351167039,1738384254602,-500.0,0.00018877,2]
[351167040,1738384254611,-500.0,0.00018877,2]
[351167041,1738384254620,-500.0,0.00018877,2]
[351167042,1738384254629,-1051.21,0.00018877,2]
[351167043,1738384254638,-500.0,0.00018877,2]
[351167044,1738384254646,-516.79982918,0.00018877,2]
[351167045,1738384254655,-500.0,0.00018877,2]
[351167046,1738384254665,-500.0,0.00018877,2]
[351167047,1738384254674,-500.0,0.00018877,2]
[351167048,1738384254683,-500.0,0.00018877,2]
[351167049,1738384254692,-500.0,0.00018877,2]
[351167050,1738384254701,-151.0,0.00018877,2]
[351167051,1738384254710,-151.583301,0.00018877,2]
[351167052,1738384254719,-500.0,0.00018877,2]
[351167053,1738384254729,-500.0,0.00018877,2]
[351167054,1738384254738,-151.195627,0.00018877,2]
[351167055,1738384254748,-151.0,0.00018877,2]
[351167056,1738384254757,-151.0,0.00018877,2]
[351167057,1738384254767,-151.0,0.00018877,2]
[351167058,1738384254776,-268.525355,0.00018877,2]
[351167059,1738384254785,-747.29,0.00018877,2]
[351167060,1738384254794,-500.0,0.00018877,2]
[351167061,1738384254803,-505.40652734,0.00018877,2]
[351167062,1738384254812,-500.0,0.00018877,2]
[351167063,1738384254821,-500.0,0.00018877,2]
[351167064,1738384254830,-500.0,0.00018877,2]
[351167065,1738384254839,-151.0,0.00018877,2]
[351167066,1738384254848,-151.0,0.00018877,2]
[351167067,1738384254857,-387.778539,0.00018877,2]
[351167068,1738384254868,-565.12451634,0.00018877,2]
[351167069,1738384254878,-387.778539,0.00018877,2]
[351167070,1738384254887,-677.89,0.00018877,2]
[351167071,1738384254897,-178.080658,0.00018877,2]
[351167072,1738384254906,-500.0,0.00018877,2]
[351167073,1738384254915,-500.0,0.00018877,2]
[351167074,1738384254924,-225.56421859,0.00018877,2]
[351167075,1738384254933,-931.54,0.00018877,2]
[351167076,1738384254942,-500.0,0.00018877,2]
[351167077,1738384254952,-500.0,0.00018877,2]
[351167078,1738384254961,-500.0,0.00018877,2]
[351167079,1738384254970,-500.0,0.00018877,2]
[351167080,1738384254979,-509.15647102,0.00018877,2]
[351167081,1738384254988,-500.0,0.00018877,2]
[351167082,1738384254997,-741.4,0.00018877,2]
[351167083,1738384255006,-500.0,0.00018877,2]
[351167084,1738384255016,-500.0,0.00018877,2]
[351167085,1738384255025,-500.0,0.00018877,2]
[351167086,1738384255034,-500.0,0.00018877,2]
[351167087,1738384255043,-500.0,0.00018877,2]
[351167088,1738384255052,-835.67,0.00018877,2]
[351167089,1738384255061,-500.0,0.00018877,2]
[351167090,1738384255070,-151.0,0.00018877,2]
[351167091,1738384255079,-500.0,0.00018877,2]
[351167092,1738384255088,-153.900494,0.00018877,2]
[351167093,1738384255097,-500.0,0.00018877,2]
[351167094,1738384255106,-151.0,0.00018877,2]
[351167095,1738384255116,-217.98446718,0.00018877,2]
[351167096,1738384255126,-500.0,0.00018877,2]
[351167097,1738384255135,-500.0,0.00018877,2]
[351167098,1738384255143,-218.078236,0.00018877,2]
[351167099,1738384255152,-218.078236,0.00018877,2]
[351167100,1738384255161,-500.0,0.00018877,2]
[351167101,1738384255170,-500.0,0.00018877,2]
[351167102,1738384255179,-500.0,0.00018877,2]
[351167103,1738384255188,-502.91265494,0.00018877,2]
[351167104,1738384255197,-218.078236,0.00018877,2]
[351167105,1738384255205,-218.078236,0.00018877,2]
[351167106,1738384255214,-500.0,0.00018877,2]
[351167107,1738384255224,-500.0,0.00018877,2]
[351167108,1738384255233,-1588.28,0.00018877,2]
[351167109,1738384255242,-500.0,0.00018877,2]
[351167110,1738384255251,-500.0,0.00018877,2]
[351167111,1738384255260,-500.0,0.00018877,2]
[351167112,1738384255269,-595.67,0.00018877,2]
[351167113,1738384255282,-500.0,0.00018877,2]
[351167114,1738384255291,-1157.731949,0.00018877,2]
[351167115,1738384255300,-1157.731949,0.00018877,2]
[351167116,1738384255309,-1157.731949,0.00018877,2]
[351167117,1738384255318,-1157.731949,0.00018877,2]
[351167118,1738384255427,-500.0,0.00018877,2]
[351167119,1738384255436,-500.0,0.00018877,2]
[351167120,1738384255445,-1528.65,0.00018877,2]
[351167121,1738384255454,-151.0,0.00018877,2]
[351167122,1738384255463,-500.0,0.00018877,2]
[351167123,1738384255471,-151.63532,0.00018877,2]
[351167124,1738384255480,-500.0,0.00018877,2]
[351167125,1738384255489,-151.0,0.00018877,2]
[351167126,1738384255498,-151.0,0.00018877,2]
[351167127,1738384255507,-500.0,0.00018877,2]
[351167128,1738384255516,-500.0,0.00018877,2]
[351167129,1738384255526,-500.0,0.00018877,2]
[351167130,1738384255535,-500.0,0.00018877,2]
[351167131,1738384255545,-151.0,0.00018877,2]
[351167132,1738384255554,-151.0,0.00018877,2]
[351167133,1738384255563,-500.0,0.00018877,2]
[351167134,1738384255572,-500.0,0.00018877,2]
[351167135,1738384255582,-1755.43,0.00018877,2]
[351167136,1738384255591,-500.0,0.00018877,2]
[351167137,1738384255600,-294.35835922,0.00018877,2]
[351167138,1738384255609,-151.0,0.00018877,2]
[351167139,1738384255619,-151.0,0.00018877,2]
[351167140,1738384255628,-627.65,0.00018877,2]
[351167141,1738384255637,-500.0,0.00018877,2]
[351167142,1738384255646,-151.0,0.00018877,2]
[351167143,1738384255655,-151.0,0.00018877,2]
[351167144,1738384255663,-500.0,0.00018877,2]
[351167145,1738384255672,-500.0,0.00018877,2]
[351167146,1738384255681,-500.0,0.00018877,2]
[351167147,1738384255690,-530.16958583,0.00018877,2]
[351167148,1738384255699,-500.0,0.00018877,2]
[351167149,1738384255707,-500.0,0.00018877,2]
[351167150,1738384255716,-500.0,0.00018877,2]
[351167151,1738384255725,-500.0,0.00018877,2]
[351167152,1738384255734,-1303.73,0.00018877,2]
[351167153,1738384255743,-500.0,0.00018877,2]
[351167154,1738384255752,-151.0,0.00018877,2]
[351167155,1738384255762,-151.0,0.00018877,2]
[351167156,1738384255771,-500.0,0.00018877,2]
[351167157,1738384255781,-500.0,0.00018877,2]
[351167158,1738384255790,-500.0,0.00018877,2]
[351167159,1738384255799,-500.0,0.00018877,2]
[351167160,1738384255808,-500.0,0.00018877,2]
[351167161,1738384255817,-10000.0,0.00018877,2]
[351167162,1738384255826,-10000.0,0.00018877,2]
[351167163,1738384255835,-503.00430098,0.00018877,2]
[351167164,1738384255845,-10000.0,0.00018877,2]
[351167165,1738384255854,-500.0,0.00018877,2]
[351167166,1738384255864,-10000.0,0.00018877,2]
[351167167,1738384255873,-10000.0,0.00018877,2]
[351167168,1738384255882,-10000.0,0.00018877,2]
[351167169,1738384255891,-151.0,0.00018877,2]
[351167170,1738384255900,-1178.46,0.00018877,2]
[351167171,1738384255909,-10000.0,0.00018877,2]
[351167172,1738384255918,-10000.0,0.00018877,2]
[351167173,1738384255928,-500.0,0.00018877,2]
[351167174,1738384255938,-151.617427,0.00018877,2]
[351167175,1738384255948,-500.0,0.00018877,2]
[351167176,1738384255957,-10000.0,0.00018877,2]
[351167177,1738384255968,-10000.0,0.00018877,2]
[351167178,1738384255977,-151.0,0.00018877,2]
[351167179,1738384255986,-376.82665,0.00018877,2]
[351167180,1738384255995,-376.82665,0.00018877,2]
[351167181,1738384256005,-500.0,0.00018877,2]
[351167182,1738384256015,-151.0,0.00018877,2]
[351167183,1738384256025,-692.52,0.00018877,2]
[351167184,1738384256034,-500.0,0.00018877,2]
[351167185,1738384256044,-500.0,0.00018877,2]
[351167186,1738384256053,-152.388127,0.00018877,2]
[351167187,1738384256062,-500.0,0.00018877,2]
[351167188,1738384256072,-151.574227,0.00018877,2]
[351167189,1738384256081,-500.0,0.00018877,2]
[351167190,1738384256091,-151.0,0.00018877,2]
[351167191,1738384256100,-269.433299,0.00018877,2]
[351167192,1738384256109,-151.0,0.00018877,2]
[351167193,1738384256122,-151.0,0.00018877,2]
[351167194,1738384256131,-151.0,0.00018877,2]
[351167195,1738384256142,-500.0,0.00018877,2]
[351167196,1738384256151,-151.0,0.00018877,2]
[351167197,1738384256161,-151.771212,0.00018877,2]
[351167198,1738384256170,-500.0,0.00018877,2]
[351167199,1738384256179,-151.0,0.00018877,2]
[351167200,1738384256189,-151.0,0.00018877,2]
[351167201,1738384256198,-151.0,0.00018877,2]
[351167202,1738384256207,-151.0,0.00018877,2]
[351167203,1738384256216,-500.0,0.00018877,2]
[351167204,1738384256226,-196.95099697,0.00018877,2]
[351167205,1738384256235,-151.0,0.00018877,2]
[351167206,1738384256244,-151.0,0.00018877,2]
[351167207,1738384256253,-500.0,0.00018877,2]
[351167208,1738384256262,-151.0,0.00018877,2]
[351167209,1738384256273,-151.0,0.00018877,2]
[351167210,1738384256284,-500.0,0.00018877,2]
[351167211,1738384256293,-500.0,0.00018877,2]
[351167212,1738384256302,-151.0,0.00018877,2]
[351167213,1738384256311,-151.0,0.00018877,2]
[351167214,1738384256322,-500.0,0.00018877,2]
[351167215,1738384256331,-500.0,0.00018877,2]
[351167216,1738384256340,-500.0,0.00018877,2]
[351167217,1738384256350,-151.0,0.00018877,2]
[351167218,1738384256360,-500.0,0.00018877,2]
[351167219,1738384256374,-151.0,0.00018877,2]
[351167220,1738384256383,-218.04241,0.00018877,2]
[351167221,1738384256392,-218.04241,0.00018877,2]
[351167222,1738384256402,-1050.7,0.00018877,2]
[351167223,1738384256411,-218.04241,0.00018877,2]
[351167224,1738384256420,-218.04241,0.00018877,2]
[351167225,1738384256429,-151.0,0.00018877,2]
[351167226,1738384256439,-151.0,0.00018877,2]
[351167227,1738384256448,-151.0,0.00018877,2]
[351167228,1738384256457,-280.837214,0.00018877,2]
[351167229,1738384256466,-190.614599,0.00018877,2]
[351167230,1738384256476,-151.0,0.00018877,2]
[351167231,1738384256485,-417.703525,0.00018877,2]
[351167232,1738384256494,-151.0,0.00018877,2]
[351167233,1738384256504,-417.703525,0.00018877,2]
[351167234,1738384256513,-417.703525,0.00018877,2]
[351167235,1738384256522,-417.703525,0.00018877,2]
[351167236,1738384256531,-151.0,0.00018877,2]
[351167237,1738384256540,-151.0,0.00018877,2]
[351167238,1738384256549,-151.0,0.00018877,2]
[351167239,1738384256558,-151.0,0.00018877,2]
[351167240,1738384256567,-226.281499,0.00018877,2]
[351167241,1738384256576,-151.0,0.00018877,2]
[351167242,1738384256586,-151.0,0.00018877,2]
[351167243,1738384256595,-151.0,0.00018877,2]
[351167244,1738384256604,-151.0,0.00018877,2]
[351167245,1738384256617,-151.0,0.00018877,2]
[351167246,1738384256627,-151.0,0.00018877,2]
[351167247,1738384256637,-151.0,0.00018877,2]
[351167248,1738384256646,-501.194793,0.00018877,2]
[351167249,1738384256655,-501.194793,0.00018877,2]
[351167250,1738384256664,-501.194793,0.00018877,2]
[351167251,1738384256674,-501.194793,0.00018877,2]
[351167252,1738384256683,-151.0,0.00018877,2]
[351167253,1738384256693,-151.0,0.00018877,2]
[351167254,1738384256702,-151.782666,0.00018877,2]
[351167255,1738384256711,-183.811918,0.00018877,2]
[351167256,1738384256720,-183.811918,0.00018877,2]
[351167257,1738384256729,-183.811918,0.00018877,2]
[351167258,1738384256739,-151.0,0.00018877,2]
[351167259,1738384256748,-183.811918,0.00018877,2]
[351167260,1738384256757,-151.0,0.00018877,2]
[351167261,1738384256766,-151.0,0.00018877,2]
[351167262,1738384256776,-168.216813,0.00018877,2]
[351167263,1738384256785,-151.0,0.00018877,2]
[351167264,1738384256795,-151.0,0.00018877,2]
[351167265,1738384256804,-151.0,0.00018877,2]
[351167266,1738384256813,-151.0,0.00018877,2]
[351167267,1738384256823,-900.0,0.00018877,2]
[351167268,1738384256833,-900.0,0.00018877,2]
[351167269,1738384256843,-900.0,0.00018877,2]
[351167270,1738384256851,-212.40636129,0.00018877,2]
[351167271,1738384256861,-151.0,0.00018878,2]
[351167272,1738384256872,-508.26411056,0.00018878,2]
[351167273,1738384256881,-151.0,0.00018878,2]
[351167274,1738384256992,-359.469731,0.00018878,2]
[351167275,1738384257002,-572.632682,0.00018878,2]
[351167276,1738384257011,-359.469731,0.00018878,2]
[351167277,1738384257020,-572.632682,0.00018878,2]
[351167278,1738384257029,-151.0,0.00018878,2]
[351167279,1738384257038,-151.0,0.00018878,2]
[351167280,1738384257047,-387.778539,0.00018878,2]
[351167281,1738384257056,-387.778539,0.00018878,2]
[351167282,1738384257065,-500.0,0.00018878,2]
[351167283,1738384257074,-500.0,0.00018878,2]
[351167284,1738384257082,-530.44760567,0.00018878,2]
[351167285,1738384257091,-975.34,0.00018878,2]
[351167286,1738384257100,-151.0,0.00018879,2]
[351167287,1738384257109,-238.675,0.00018879,2]
[351167288,1738384257119,-238.675,0.00018879,2]
[351167289,1738384257128,-151.0,0.00018879,2]
[351167290,1738384257137,-151.0,0.00018879,2]
[351167291,1738384257146,-151.0,0.00018879,2]
[351167292,1738384257155,-178.07986,0.00018879,2]
[351167293,1738384257164,-151.0,0.00018879,2]
[351167294,1738384257173,-151.0,0.00018879,2]
[351167295,1738384257182,-151.0,0.00018879,2]
[351167296,1738384257191,-151.0,0.00018879,2]
[351167297,1738384257200,-151.0,0.00018879,2]
[351167298,1738384257209,-151.0,0.00018879,2]
[351167299,1738384257219,-151.0,0.00018879,2]
[351167300,1738384257228,-151.0,0.00018879,2]